[Event "Superbet Blitz Poland 2022"]
[Site "Warsaw"]
[Date "2022.05.23"]
[Round "16.4"]
[White "Gavrilescu, David"]
[Black "Wojtaszek, Radoslaw"]
[Result "1-0"]
[ECO "B11"]
[WhiteElo "2518"]
[BlackElo "2696"]
[Annotator "TA"]
[PlyCount "171"]
[EventDate "2022.05.22"]
[EventType "tourn"]
[EventCountry "POL"]
[SourceTitle "playchess.com"]
[Source "ChessBase"]
[SourceQuality "1"]
[TimeControl "300+2"]

{[%evp 10,171,12,15,30,12,35,27,36,37,38,11,13,0,0,0,0,0,16,16,12,3,20,20,18,0,0,0,0,0,0,0,0,-7,0,0,0,0,0,0,0,0,0,-18,0,0,0,0,6,6,8,10,6,-27,6,0,0,4,6,-14,0,-23,0,0,23,22,56,55,91,116,108,118,92,95,87,98,239,50,50,51,355,170,154,59,52,0,0,0,0,-10,233,225,311,309,416,421,414,405,466,450,594,588,557,460,520,517,493,463,718,713,924,882,1123,1115,982,3,2150,0,882,0,5019,2261,12841,0,65,0,0,0,0,0,0,0,0,0,0,0,0,0,0,0,1283,0,1018,983,1280,1258,12843,12843,12844,12844,12845,12844,12846,12845,12847,12846,12847,12844,12846,12844,12847,12847,12847,12848]} 1. e4 {[%emt 0:00:02]} c6 {[%emt 0:00:00]} 2. Nf3 {[%emt 0:00:02]} d5 {[%emt 0:00:01]} 3. Nc3 {[%emt 0:00:01]} Bg4 {[%emt 0:00:02]} 4. h3 {[%emt 0:00:01]} Bxf3 {[%emt 0:00:01]} 5. Qxf3 {[%emt 0:00:02]} e6 {[%emt 0:00:02]} 6. Be2 {[%emt 0:00:01]} Nf6 {[%emt 0:00:07]} 7. O-O {[%emt 0:00:02]} dxe4 {[%emt 0:00:04]} 8. Nxe4 {[%emt 0:00:02]} Nxe4 {[%emt 0:00:03]} 9. Qxe4 {[%emt 0:00:02]} Nd7 {[%emt 0:00:01]} 10. b3 {[%emt 0:00:22]} Nf6 {[%emt 0:00:05]} 11. Qe3 {[%emt 0:00:06]} Nd5 {[%emt 0:00:07]} 12. Qf3 {[%emt 0:00:06]} Qf6 {[%emt 0:00:11]} 13. Qxf6 {[%emt 0:00:03]} Nxf6 {[%emt 0:00:01]} 14. Bb2 {[%emt 0:00:03]} Be7 {[%emt 0:00:02]} 15. a4 {[%emt 0:00:01]} a5 {[%emt 0:00:02]} 16. Bf3 {[%emt 0:00:35]} Rd8 {[%emt 0:00:07]} 17. d3 {[%emt 0:00:54]} O-O {[%emt 0:00:05]} 18. Bc3 {[%emt 0:00:08]} Ra8 {[%emt 0:00:04]} 19. Rfe1 {[%emt 0:00:32]} Rfd8 {[%emt 0:00:05]} 20. Be5 {[%emt 0:00:13]} Nd5 {[%emt 0:00:05]} 21. g3 {[%emt 0:00:05]} Bf6 {[%emt 0:00:13]} 22. h4 {[%emt 0:00:05]} Bxe5 {[%emt 0:00:09]} 23. Rxe5 {[%emt 0:00:02]} Nb4 {[%emt 0:00:04]} 24. Re2 {[%emt 0:00:01]} g6 {[%emt 0:00:02]} 25. h5 {[%emt 0:00:02]} Kg7 {[%emt 0:00:04]} 26. Kf1 {[%emt 0:00:07]} Kf6 {[%emt 0:00:08]} 27. Ke1 {[%emt 0:00:04]} Rd6 {[%emt 0:00:02]} 28. Kd2 {[%emt 0:00:08]} Rad8 {[%emt 0:00:01]} 29. Be4 {[%emt 0:00:07]} Na6 {[%emt 0:00:06]} ({Don't play} 29... gxh5 30. Rh1 $16) 30. Rh1 {[%emt 0:00:05]} Nc5 {[%emt 0:00:12]} 31. Bg2 {[%emt 0:00:02]} Rd4 {[%emt 0:00:05]} 32. Re3 {[%emt 0:00:03]} g5 {[%emt 0:00:21]} 33. h6 {[%emt 0:00:10]} R4d6 {[%emt 0:00:30]} 34. Bf3 {[%emt 0:00:05]} b6 {[%emt 0:00:18]} 35. Kc3 {[%emt 0:00:35]} Rg8 {[%emt 0:00:23]} 36. d4 {[%emt 0:00:21]} Na6 {[%emt 0:00:18]} 37. Be4 {[%emt 0:00:01]} Rh8 {[%emt 0:00:11]} 38. Rh5 $1 {[%emt 0:00:01]} c5 {[%emt 0:00:22]} 39. Rf3+ {[%emt 0:00:31]} Ke7 {[%emt 0:00:01]} 40. Rxg5 {[%emt 0:00:01]} cxd4+ {[%emt 0:00:03] [#]} 41. Kd2 $1 {[%emt 0:00:18]} Nc5 {[%emt 0:00:05]} 42. Bd3 {[%emt 0:00:01]} Nd7 {[%emt 0:00:41]} (42... Nxd3 $16 43. cxd3 f5) 43. Bb5 $2 {[%emt 0:00:05]} ({White should try} 43. g4 $18) 43... Nf6 $1 $14 {[%emt 0:00:06]} 44. Rg7 {[%emt 0:00:02]} e5 $2 {[%emt 0:00:23][%mdl 8192]} (44... Rdd8 $1 $14) 45. g4 {[%emt 0:00:03]} (45. Kc1 $142) 45... Rf8 {[%emt 0:00:10]} 46. Rf5 {[%emt 0:00:04]} ({Better is} 46. g5 $16 Ne4+ 47. Kd3) 46... Ne4+ $1 $14 {[%emt 0:00:04]} 47. Kd3 {[%emt 0:00:02]} (47. Ke1 $14 Rxh6 48. Rxe5+ Kf6 49. g5+ Kxe5 50. gxh6) 47... Nc5+ $11 {[%emt 0:00:01]} 48. Ke2 {[%emt 0:00:01]} Rxh6 {[%emt 0:00:02]} 49. Rxe5+ {[%emt 0:00:01]} Re6 $2 {[%emt 0:00:01]} (49... Ne6 $1 $11 {and Black is okay.} 50. Rgg5 f6 51. Rg7+ Kd6 52. Rxe6+ Kxe6) 50. Rxe6+ $18 {[%emt 0:00:01]} Kxe6 {[%emt 0:00:11]} 51. Rxh7 {[%emt 0:00:02]} Ne4 {[%emt 0:00:02]} 52. Bc4+ {[%emt 0:00:02]} Kf6 {[%emt 0:00:03]} 53. Rh6+ {[%emt 0:00:01]} Ke5 {[%emt 0:00:01]} 54. Rxb6 {[%emt 0:00:01]} Nc3+ {[%emt 0:00:02]} 55. Kd3 {[%emt 0:00:01]} Rh8 {[%emt 0:00:00]} 56. f4+ {[%emt 0:00:02]} Kxf4 {[%emt 0:00:01]} 57. Kxd4 {[%emt 0:00:00]} Ne4 {[%emt 0:00:01]} 58. Bxf7 {[%emt 0:00:06]} Rd8+ {[%emt 0:00:02]} (58... Rh2 $142 59. Ra6 Rd2+ 60. Kc4 Rxc2+ 61. Kb5 Rc7) 59. Bd5 $18 {[%emt 0:00:03]} Nd2 {[%emt 0:00:03]} 60. c4 {[%emt 0:00:02]} Kxg4 {[%emt 0:00:02]} 61. c5 {[%emt 0:00:00]} Nf3+ {[%emt 0:00:01]} 62. Kc4 $2 {[%emt 0:00:04]} ({White must play} 62. Ke4 $18 Ng5+ 63. Ke5) 62... Nd2+ $2 {[%emt 0:00:01][%mdl 8192]} (62... Ne5+ $11 63. Kd4 Kf5) 63. Kd4 {[%emt 0:00:04]} (63. Kb5 $142 Kf4 64. Be6) 63... Nf3+ $18 {[%emt 0:00:01]} 64. Kc4 {[%emt 0:00:01]} (64. Ke4 $142 Ng5+ 65. Ke5 Re8+ 66. Kd4) 64... Nd2+ $18 {[%emt 0:00:00] [#]} 65. Kb5 $1 {[%emt 0:00:00]} Rxd5 {[%emt 0:00:01]} 66. Kc6 $2 {[%emt 0:00:01]} ({White has to play} 66. Rd6 $18 Re5 67. Rxd2) 66... Re5 {[%emt 0:00:05]} (66... Rd3 $11) 67. Kd6 {[%emt 0:00:02]} (67. Rb5 $1 $14) 67... Kf4 $11 {[%emt 0:00:03]} 68. c6 {[%emt 0:00:01]} Ne4+ {[%emt 0:00:00]} 69. Kd7 {[%emt 0:00:01]} Nc5+ {[%emt 0:00:01]} 70. Kd8 {[%emt 0:00:02]} Ne6+ {[%emt 0:00:01]} 71. Kd7 {[%emt 0:00:00] Strongly threatening c7.} Nc5+ {[%emt 0:00:01]} 72. Kd6 {[%emt 0:00:02] And now c7 would win.} Ne4+ {[%emt 0:00:01]} 73. Kc7 {[%emt 0:00:00] Rb5 is the strong threat.} Rc5 {[%emt 0:00:12]} 74. Rb5 {[%emt 0:00:03] Black must now prevent Rxc5.} Rc1 $2 {[%emt 0:00:06][%mdl 8192]} (74... Rc3 $11) 75. Kb6 $2 {[%emt 0:00:01]} ({Only move:} 75. Rxa5 $18 Ke3 76. b4) 75... Nd6 $2 {[%emt 0:00:02][%mdl 8192]} (75... Rc3 $11) 76. Rxa5 $18 {[%emt 0:00:06]} Rb1 {[%emt 0:00:04]} 77. Kc7 {[%emt 0:00:04]} Ne8+ {[%emt 0:00:01]} 78. Kd8 {[%emt 0:00:01]} Nf6 {[%emt 0:00:00]} 79. c7 {[%emt 0:00:02]} Rd1+ {[%emt 0:00:01]} 80. Kc8 {[%emt 0:00:01]} Ne8 {[%emt 0:00:02]} 81. Rc5 {[%emt 0:00:02]} Rb1 {[%emt 0:00:01]} 82. Rc3 {[%emt 0:00:02]} Ke5 {[%emt 0:00:03]} 83. a5 {[%emt 0:00:01]} Ra1 {[%emt 0:00:03]} 84. b4 {[%emt 0:00:02]} Ra4 {[%emt 0:00:02]} 85. Re3+ {[%emt 0:00:01]} Kd6 {[%emt 0:00:01]} 86. Rxe8 1-0

[Event "Superbet Blitz Poland 2022"]
[Site "Warsaw"]
[Date "2022.05.23"]
[Round "16.5"]
[White "Korobov, Anton"]
[Black "Duda, Jan-Krzysztof"]
[Result "1-0"]
[ECO "A33"]
[WhiteElo "2671"]
[BlackElo "2750"]
[Annotator "TA"]
[PlyCount "111"]
[EventDate "2022.05.22"]
[EventType "tourn"]
[EventCountry "POL"]
[SourceTitle "playchess.com"]
[Source "ChessBase"]
[SourceQuality "1"]
[TimeControl "300+2"]

{[%evp 11,111,0,29,25,8,8,22,0,0,0,0,0,12,5,4,0,0,-41,-47,-37,-32,-23,-36,-56,-33,-48,-44,-57,0,0,0,-23,-10,-12,0,0,-16,-18,-12,-13,-21,-8,-6,-11,68,87,66,77,69,71,106,20,64,10,116,105,133,119,257,100,109,108,269,260,724,723,671,666,835,815,797,785,694,656,908,892,674,723,722,54,962,722,964,958,29977,29978,29974,29972,29985,29986,29997,29992,29992,29992,29995,29971,2025,-331,29991,29992,29995,29991]} 1. c4 {[%emt 0:00:02]} Nf6 {[%emt 0:00:02]} 2. Nc3 {[%emt 0:00:02]} c5 {[%emt 0:00:04]} 3. Nf3 {[%emt 0:00:03]} Nc6 {[%emt 0:00:01]} 4. d4 {[%emt 0:00:01]} cxd4 {[%emt 0:00:01]} 5. Nxd4 {[%emt 0:00:02]} e6 {[%emt 0:00:02]} 6. a3 {[%emt 0:00:01]} Bc5 {[%emt 0:00:06]} 7. Nb3 {[%emt 0:00:03] A33: Symmetrical English: 2 Nf3 Nf6 3 d4 cxd4 4 Nxd4 e6 5 Nc3 Nc6.} Bb6 {[%emt 0:00:01]} 8. c5 {[%emt 0:00:01]} Bc7 {[%emt 0:00:01]} 9. g3 {[%emt 0:00:02] The position is equal.} (9. Bg5 {feels hotter.} b6 10. e3 Be5 11. Rc1) 9... O-O {[%emt 0:00:04]} 10. Bg2 {[%emt 0:00:02]} b6 {[%emt 0:00:10]} 11. O-O {[%emt 0:00:03]} Rb8 {[%emt 0:00:17]} 12. Nb5 {[%emt 0:00:48]} Be5 {[%emt 0:00:38] [#]} 13. f4 $146 {[%emt 0:00:21]} ({Predecessor:} 13. Bxc6 dxc6 14. Qxd8 Rxd8 15. Nxa7 Bd7 16. Rd1 Bc7 17. Be3 Nd5 18. cxb6 Bxb6 19. Bxb6 Rxb6 {1-0 (53) Maltsevskaya,A (2410)-Suleymenov,A (2418) Cheliabinsk 2022}) 13... Bc7 {[%emt 0:00:02]} 14. Kh1 {[%emt 0:00:21]} (14. Be3 {is more complex.} Ng4 15. Bd2 bxc5 16. Nxc7 Qxc7 17. Nxc5 Rxb2 18. Na4) 14... bxc5 {[%emt 0:00:23]} 15. Nxc7 {[%emt 0:00:04]} Qxc7 {[%emt 0:00:02]} 16. Nxc5 {[%emt 0:00:03]} d6 {[%emt 0:00:08]} 17. Nd3 {[%emt 0:00:15]} Bb7 {[%emt 0:00:22]} 18. e4 {[%emt 0:00:04]} Na5 {[%emt 0:00:21]} 19. Re1 {[%emt 0:00:19]} Ba8 {[%emt 0:00:39]} (19... Qc4 $15 20. Nf2 Nb3) 20. b4 $11 {[%emt 0:00:22]} Nc4 {[%emt 0:00:03]} 21. Ra2 {[%emt 0:00:16]} Rfc8 {[%emt 0:00:06]} 22. Rc2 {[%emt 0:00:10]} Qd8 {[%emt 0:00:33]} 23. g4 {[%emt 0:00:17][%cal Bg3g4,Bg4g5][%mdl 32]} Nb6 {[%emt 0:00:27] Pair of Knights!} 24. g5 {[%emt 0:00:10]} Rxc2 {[%emt 0:00:03]} 25. Qxc2 {[%emt 0:00:02]} Rc8 {[%emt 0:00:00]} 26. Qf2 {[%emt 0:00:18]} Nfd7 {[%emt 0:00:05]} 27. Bb2 {[%emt 0:00:01]} a5 {[%emt 0:00:47]} (27... Nc4 $11) 28. Qd4 $14 {[%emt 0:00:16][%csl Gb2][%cal Rd4g7]} Qf8 {[%emt 0:00:03]} 29. bxa5 {[%emt 0:00:03][%cal Bb4a5,Ba5a6][%mdl 32] White is more active.} Nc4 {[%emt 0:00:07]} 30. a6 $1 {[%emt 0:00:02]} e5 {[%emt 0:00:02]} 31. Qf2 {[%emt 0:00:15]} ({White should play} 31. fxe5 $16 {Bh3 is the strong threat.} Ndxe5 32. Ba1 (32. Nxe5 dxe5 33. Qf2 Nxb2 $14)) 31... Qd8 {[%emt 0:00:10]} 32. Rf1 {[%emt 0:00:06]} (32. fxe5 $14 Nxb2 33. Qxb2 Nxe5 34. Nxe5 dxe5 35. Qxe5) 32... Qe7 {[%emt 0:00:02]} (32... Nxb2 $11 {remains equal.} 33. Qxb2 (33. Nxb2 exf4 34. Qxf4 Ne5 $11) 33... exf4) 33. Ba1 {[%emt 0:00:22]} Rf8 {[%emt 0:00:05]} 34. h4 {[%emt 0:00:06]} Nxa3 {[%emt 0:00:08]} (34... exf4 $16 35. Qxf4 Nde5) 35. f5 $2 {[%emt 0:00:03]} (35. Rc1 $18 {and White stays clearly on top. Strongly threatening Qb2.} Nb5 36. Qb2) 35... Qd8 $16 {[%emt 0:00:03]} 36. f6 {[%emt 0:00:01]} g6 $2 {[%emt 0:00:02]} (36... Qa5 $16) 37. h5 $18 {[%emt 0:00:02]} Qa5 $2 {[%emt 0:00:02]} (37... gxh5 38. Qe2 Qe8) 38. hxg6 {[%emt 0:00:07]} fxg6 {[%emt 0:00:00]} 39. Qa2+ {[%emt 0:00:15]} d5 {[%emt 0:00:01]} 40. exd5 {[%emt 0:00:07] Threatens to win with f7+.} Qxa6 {[%emt 0:00:01]} 41. Nb4 {[%emt 0:00:06]} Qa4 {[%emt 0:00:05]} 42. Nc6 {[%emt 0:00:02]} Qh4+ {[%emt 0:00:02]} 43. Kg1 {[%emt 0:00:01]} Nc4 {[%emt 0:00:03]} 44. Qa7 {[%emt 0:00:06]} Qg4 {[%emt 0:00:02]} 45. Rc1 $2 {[%emt 0:00:05]} (45. Bc3 $18) 45... Nd2 $2 {[%emt 0:00:02][%mdl 8192]} (45... Bb7 $14) 46. Qe3 {[%emt 0:00:02]} h6 {[%emt 0:00:03]} 47. Qxd2 {[%emt 0:00:03]} hxg5 {[%emt 0:00:02]} 48. Nxe5 {[%emt 0:00:02]} Nxe5 49. Bxe5 {[%emt 0:00:01]} Bb7 {[%emt 0:00:03]} 50. Rc7 {[%emt 0:00:02][%cal Bc1c7,Bc7g7,Bg7b7][%mdl 32]} Ra8 {[%emt 0:00:03]} 51. Rg7+ {[%emt 0:00:03]} Kh8 {[%emt 0:00:01]} 52. Rxb7 {[%emt 0:00:03]} Ra1+ {[%emt 0:00:01]} 53. Kf2 {[%emt 0:00:01]} Qf5+ {[%emt 0:00:01] [#]} 54. Qf4 $4 {[%emt 0:00:07][%mdl 8192]} Ra2+ $4 {[%emt 0:00:03][%mdl 8192]} (54... gxf4 $2 {leads to mate.} 55. f7+ Kh7 56. f8=Q+) (54... Qc2+ $19 55. Kg3 gxf4+ 56. Bxf4 (56. Kh2 $2 Rh1+ 57. Kxh1 Qd1+ 58. Kh2 Qh5+ 59. Kg1 Qxe5 $19) 56... g5) 55. Kg1 {[%emt 0:00:01]} Ra1+ {[%emt 0:00:03]} 56. Kh2 {[%emt 0:00:01] Weighted Error Value: White=0.42/Black=0.51} 1-0

[Event "Superbet Blitz Poland 2022"]
[Site "Warsaw"]
[Date "2022.05.23"]
[Round "17.1"]
[White "Korobov, Anton"]
[Black "Aronian, Levon"]
[Result "1/2-1/2"]
[ECO "C67"]
[WhiteElo "2671"]
[BlackElo "2765"]
[Annotator "TA"]
[PlyCount "61"]
[EventDate "2022.05.22"]
[EventType "tourn"]
[EventCountry "POL"]
[SourceTitle "playchess.com"]
[Source "ChessBase"]
[SourceQuality "1"]
[TimeControl "300+2"]

{[%evp 11,61,11,21,-66,-78,-335,-341,-341,-286,-285,-292,-288,-279,-282,-279,-275,-252,-263,-254,-288,-291,-289,-285,-307,-312,-313,-310,-304,-301,-289,-285,-294,-290,-329,-296,-294,-235,-229,-143,-146,-177,-161,0,0,0,0,0,0,0,0,0,0]} 1. e4 {[%emt 0:00:02]} e5 {[%emt 0:00:01]} 2. Nf3 {[%emt 0:00:02]} Nc6 {[%emt 0:00:02]} 3. Bb5 {[%emt 0:00:03]} Nf6 {[%emt 0:00:02][%cal Bg8f6,Bf6e4,Be4d6][%mdl 32]} 4. O-O {[%emt 0:00:11]} Nxe4 {[%emt 0:00:01]} 5. Re1 {[%emt 0:00:03]} Nd6 {[%emt 0:00:02]} 6. Nxe5 {[%emt 0:00:02]} Be7 {[%emt 0:00:01]} 7. d4 {[%emt 0:00:07] C67: Ruy Lopez: Berlin Defence: 4 0-0 Nxe4.} Nxb5 $15 {[%emt 0:00:36] [#]} 8. Nxf7 $146 {[%emt 0:01:00][%mdl 8192]} ({Predecessor:} 8. Bg5 Nbxd4 9. Bxe7 Nxe7 10. Qxd4 O-O 11. c4 d6 12. Nf3 Re8 13. Nc3 b6 14. Qe4 {½-½ (43) Janzen,N (2478)-Szczepanski,Z (2475) ICCF email 2016}) 8... Kxf7 $19 {[%emt 0:00:11]} 9. Qh5+ {[%emt 0:00:02] Black has a decisive advantage.} Kf8 {[%emt 0:00:07]} 10. Qxb5 {[%emt 0:00:10]} Nxd4 {[%emt 0:00:19]} 11. Qd3 {[%emt 0:00:10]} Bf6 {[%emt 0:00:07]} 12. Be3 {[%emt 0:00:49]} Nc6 {[%emt 0:00:25]} 13. Nc3 {[%emt 0:00:02]} Bxc3 {[%emt 0:00:02]} 14. Qxc3 {[%emt 0:00:01][%cal Oe3h6] Bh6! is the strong threat.} Qf6 {[%emt 0:00:04] Prevents Bh6. aiming for ...Qxc3.} 15. Qb3 {[%emt 0:00:20]} Qf7 {[%emt 0:00:10]} 16. c4 {[%emt 0:00:22]} d6 {[%emt 0:00:03]} 17. Rac1 {[%emt 0:00:09]} h6 {[%emt 0:00:17]} 18. Rc3 {[%emt 0:00:11]} b6 {[%emt 0:00:21]} 19. Qa4 {[%emt 0:00:07]} Bb7 {[%emt 0:00:19]} 20. c5 {[%emt 0:00:11]} dxc5 {[%emt 0:00:20]} 21. Bxc5+ {[%emt 0:00:03]} Kg8 {[%emt 0:00:01]} (21... bxc5 22. Rf3 Qxf3 23. gxf3 $17) 22. Rf3 {[%emt 0:00:35]} Qd5 {[%emt 0:00:14]} (22... bxc5 23. Rxf7 Kxf7 24. Qb3+ c4 25. Qxc4+ Kf8 26. Re3 $18) 23. Rd1 {[%emt 0:00:04]} Qe6 {[%emt 0:00:26]} (23... Qxc5 24. Qb3+ Kh7 25. Qd3+ Kg8 26. Qb3+ Kh7 27. Qd3+ Kg8 28. Qb3+ $11) 24. Re3 {[%emt 0:00:01]} Qf5 {[%emt 0:00:39]} 25. Rf3 {[%emt 0:00:06]} Qh5 {[%emt 0:00:06]} ({Don't play} 25... Qxc5 $6 26. Qb3+ Kh7 27. Qd3+ Kg8 28. Qb3+ Kh7 29. Qd3+ Kg8 30. Qb3+ $11) 26. Rd7 {[%emt 0:00:32]} Ne5 {[%emt 0:00:05] Inhibits Qc4+.} (26... bxc5 27. Qb3+ c4 28. Qxc4+ Kh7 29. Qd3+ Kg8 30. Qc4+ Kh7 31. Qd3+ Kg8 32. Qc4+ $11) (26... Ne7 $19 27. Bxe7 Bxf3 28. gxf3 Qg6+ 29. Kf1 c5) 27. Qb3+ $11 {[%emt 0:00:13] The position is equal.} Kh7 {[%emt 0:00:03]} 28. Qc2+ {[%emt 0:00:00]} Kg8 $1 {[%emt 0:00:25]} (28... Qg6 $2 29. Rg3 $1 Rhd8 30. Rxg6 Nxg6 31. Rxd8 (31. Rxc7 Be4 $11) 31... Rxd8 32. h4 $1 bxc5 33. h5 $18) 29. Qb3+ {[%emt 0:00:02]} Kh7 {[%emt 0:00:03]} 30. Qc2+ {[%emt 0:00:01]} Kg8 $1 {[%emt 0:00:01]} (30... Qg6 $2 {[#]} 31. Rg3 $1 Rhd8 32. Rxg6 Nxg6 33. Rxd8 (33. Rxc7 Be4 $11) 33... Rxd8 34. h4 $1 bxc5 35. h5 $18) 31. Qb3+ {[%emt 0:00:00] Weighted Error Value: White=0.20 (precise) /Black=0.16 (very precise)} 1/2-1/2

[Event "Superbet Blitz Poland 2022"]
[Site "Warsaw"]
[Date "2022.05.23"]
[Round "17.2"]
[White "Duda, Jan-Krzysztof"]
[Black "Gavrilescu, David"]
[Result "1-0"]
[ECO "D50"]
[WhiteElo "2750"]
[BlackElo "2518"]
[Annotator "TA"]
[PlyCount "51"]
[EventDate "2022.05.22"]
[EventType "tourn"]
[EventCountry "POL"]
[SourceTitle "playchess.com"]
[Source "ChessBase"]
[SourceQuality "1"]
[TimeControl "300+2"]

{[%evp 16,51,26,20,31,15,24,10,49,43,46,35,26,9,25,4,55,54,72,78,202,217,259,180,182,187,370,347,374,374,363,368,353,355,492,487,582,570]} 1. d4 {[%emt 0:00:01]} d5 {[%emt 0:00:01]} 2. c4 {[%emt 0:00:01]} e6 {[%emt 0:00:01]} 3. Nc3 {[%emt 0:00:01]} Nf6 {[%emt 0:00:02]} 4. Bg5 {[%emt 0:00:02]} dxc4 {[%emt 0:00:01]} 5. e3 {[%emt 0:00:02]} c5 {[%emt 0:00:03]} 6. Nf3 {[%emt 0:00:06]} cxd4 {[%emt 0:00:15]} 7. Nxd4 {[%emt 0:00:02]} Be7 {[%emt 0:00:14]} 8. Bxc4 {[%emt 0:00:02]} O-O {[%emt 0:00:03]} 9. O-O {[%emt 0:00:02]} Bd7 {[%emt 0:00:13] D50: Queen's Gambit Declined: Dutch-Peruvian Gambit.} 10. Qe2 {[%emt 0:00:21]} Nc6 {[%emt 0:00:02] [#]} 11. Nf3 $146 {[%emt 0:00:01]} ({Predecessor:} 11. Rfd1 Nxd4 12. Rxd4 Qc7 13. Bb5 Bxb5 14. Qxb5 a6 15. Qb3 Rac8 16. Rad1 Rfd8 {½-½ (16) Vitiugov,N (2722)-Lysyj,I (2594) Cheliabinsk 2020}) 11... a6 {[%emt 0:00:13] The position is equal.} 12. Rfd1 {[%emt 0:00:03]} Qc7 {[%emt 0:00:02]} 13. h3 {[%emt 0:00:45]} Rfd8 {[%emt 0:00:08]} 14. Bf4 {[%emt 0:00:02] Against Ne5} Qb6 {[%emt 0:00:06]} 15. e4 {[%emt 0:00:05][%cal Be3e4,Be4e5][%mdl 32]} Na5 {[%emt 0:01:18]} ({Black should try} 15... Be8 $11) 16. e5 {[%emt 0:00:24]} Nh5 {[%emt 0:00:02]} 17. Be3 {[%emt 0:00:21]} Qb4 {[%emt 0:00:01] [#] This move loses the game for Black.} (17... Bc5 $16) 18. Rd4 $1 $18 {[%emt 0:00:19][%cal Bd1d4,Bd4e4,Be4c4,Bc4b4,Bb4b7,Bb7e7][%mdl 32]} Be8 {[%emt 0:00:31] Threatens to win with ...Rxd4.} 19. Re4 {[%emt 0:01:16]} Nxc4 {[%emt 0:00:45]} 20. Rxc4 {[%emt 0:00:03]} Bb5 $2 {[%emt 0:00:02]} (20... Qa5 {is a better defense.} 21. a3 Rd7) 21. Rxb4 {[%emt 0:00:08]} Bxe2 {[%emt 0:00:01] This bishop pair is nice.} 22. Rxb7 {[%emt 0:00:01]} Bxf3 {[%emt 0:00:02]} 23. Rxe7 {[%emt 0:00:01]} Bc6 {[%emt 0:00:31]} 24. g4 {[%emt 0:00:02][%cal Bg2g4,Bg4h5][%mdl 32]} Bd7 {[%emt 0:00:08]} 25. gxh5 {[%emt 0:00:02]} Kf8 {[%emt 0:00:01]} 26. Bc5 {[%emt 0:00:02][%csl LRd7,LRe6] Weighted Error Value: White=0.09 (flawless) /Black=0.41} 1-0

[Event "Superbet Blitz Poland 2022"]
[Site "Warsaw"]
[Date "2022.05.23"]
[Round "17.3"]
[White "Wojtaszek, Radoslaw"]
[Black "Shevchenko, Kirill"]
[Result "1/2-1/2"]
[ECO "E67"]
[WhiteElo "2696"]
[BlackElo "2644"]
[Annotator "TA"]
[PlyCount "80"]
[EventDate "2022.05.22"]
[EventType "tourn"]
[EventCountry "POL"]
[SourceTitle "playchess.com"]
[Source "ChessBase"]
[SourceQuality "1"]
[TimeControl "300+2"]

{[%evp 16,80,46,23,45,25,28,33,32,0,0,0,0,8,4,-51,-20,0,0,0,11,12,18,0,28,26,36,21,43,16,26,0,0,0,16,0,0,0,0,0,6,-18,-7,-21,156,143,160,163,127,145,154,154,122,94,168,178,178,144,181,172,143,0,131,0,49,0,58]} 1. Nf3 {[%emt 0:00:01]} Nf6 {[%emt 0:00:02]} 2. c4 {[%emt 0:00:01]} g6 {[%emt 0:00:14]} 3. g3 {[%emt 0:00:03]} Bg7 {[%emt 0:00:01]} 4. Bg2 {[%emt 0:00:01]} O-O {[%emt 0:00:01]} 5. O-O {[%emt 0:00:05]} d6 {[%emt 0:00:02]} 6. d4 {[%emt 0:00:03]} Nbd7 {[%emt 0:00:01]} 7. Nc3 {[%emt 0:00:01]} e5 {[%emt 0:00:01]} 8. e4 {[%emt 0:00:01]} Re8 {[%emt 0:00:04]} 9. h3 {[%emt 0:00:02]} b6 {[%emt 0:00:05] E67: King's Indian: Fianchetto: 6...Nbd7.} 10. Be3 {[%emt 0:00:09]} exd4 {[%emt 0:00:07]} 11. Nxd4 {[%emt 0:00:02] Nc6 is the strong threat.} Bb7 {[%emt 0:00:04][%cal Rf6e4] Inhibits Nc6. White is slightly better.} 12. f3 {[%emt 0:00:17] [#]} d5 $146 {[%emt 0:01:11]} ({Predecessor:} 12... c6 13. Bf2 Qc7 14. Rc1 Rad8 15. b4 Ne5 16. Nce2 Qb8 17. b5 c5 18. Nb3 a6 {0-1 (39) Cerveny,M (2411)-Praggnanandhaa,R (2608) Chess.com INT 2021}) 13. cxd5 {[%emt 0:00:10]} Nxd5 {[%emt 0:00:01]} 14. Nxd5 {[%emt 0:00:01]} Bxd5 {[%emt 0:00:01]} 15. Bf2 {[%emt 0:00:02]} ({Better is} 15. Rf2 $11) 15... Bb7 {[%emt 0:00:38]} 16. Qc2 {[%emt 0:00:01]} Nc5 {[%emt 0:00:34]} 17. Rad1 {[%emt 0:00:30][%cal Od4f5]} Qe7 {[%emt 0:00:18]} 18. Rfe1 {[%emt 0:00:17][%cal Oe4e5]} a5 {[%emt 0:00:09]} 19. e5 {[%emt 0:00:10]} Rad8 {[%emt 0:00:06]} ({Don't do} 19... Bxe5 20. f4 Bxd4 21. Rxe7 Bxf2+ 22. Kxf2 $16 (22. Qxf2 Rxe7 23. Bxb7 Nxb7 $14)) (19... Qd7 $5 {[%cal Rg7e5]}) 20. f4 {[%emt 0:00:06] Strongly threatening Bxb7.} Bxg2 {[%emt 0:00:04]} 21. Kxg2 {[%emt 0:00:01] Hoping for Nc6.} Qd7 {[%emt 0:00:24] Against Nc6} 22. Kh2 {[%emt 0:00:35][%cal Oe5e6]} Qc8 $1 {[%emt 0:01:07] Against e6} 23. Nc6 {[%emt 0:00:26]} Rxd1 {[%emt 0:00:02]} 24. Rxd1 {[%emt 0:00:02][%cal Be1d1,Bd1d2,Bd2d7][%mdl 32]} Qe6 {[%emt 0:00:01]} 25. Nd4 {[%emt 0:00:29]} ({Avoid the trap} 25. Bxc5 $2 Qxc6 26. Rc1 bxc5 $19) 25... Qxa2 {[%emt 0:00:04]} 26. Nb5 $36 {[%emt 0:00:01][%csl LRc5,LRc7][%mdl 2048] White is pushing.} Ne6 {[%emt 0:00:12]} 27. Rd2 {[%emt 0:00:31]} c5 {[%emt 0:00:03]} 28. Nd6 {[%emt 0:00:06]} (28. Qd1 $5 {[%cal Rb2b3]} a4 29. Nc3 $11) 28... Rf8 {[%emt 0:00:02]} 29. Qc4 {[%emt 0:00:17]} Qb1 {[%emt 0:00:03] [#]} (29... Qxc4 $11 30. Nxc4 f6) 30. Nxf7 $1 $16 {[%emt 0:00:09][%mdl 576] Decoy} Kxf7 {[%emt 0:00:09]} 31. Rd7+ {[%emt 0:01:24][%mdl 64] Deflection} Kg8 {White must now prevent ...Re8.} 32. Qxe6+ {[%emt 0:00:02]} Kh8 33. Qe7 {[%emt 0:00:00][%csl Gd7][%cal Re7g7] White is more active.} Rg8 {[%emt 0:00:03]} 34. Rd8 {[%emt 0:00:00] Threatens to win with Rxg8+.} Qxb2 {[%emt 0:00:10]} (34... h5 $16) 35. Rxg8+ $18 {[%emt 0:00:00]} Kxg8 $16 {[%emt 0:00:01] KQB-KQB} 36. Qe6+ {[%emt 0:00:00]} Kf8 {[%emt 0:00:00]} 37. Qd6+ {[%emt 0:00:00][%mdl 1024] White has strong compensation.} Kg8 {[%emt 0:00:03]} 38. Qe6+ Kf8 {[#]} 39. Qd6+ (39. Kg2 $1 $16) 39... Kg8 $14 40. Qe6+ {[%emt 0:00:00]} Kf8 {Weighted Error Value: White=0.24 (precise) /Black=0.20 (precise)} 1/2-1/2